bitfinex-derivatives/quotes_BTCF0:USTF0_20250106
["timestamp","ask_amount","ask_price","bid_price","bid_amount"]
[1736175086291,0.1,100600.0,100590.0,1.03446757]
[1736175086493,0.1,100600.0,100590.0,0.771319]
[1736175086688,0.1,100600.0,100590.0,1.03446757]
[1736175087698,0.049699,100630.0,100610.0,0.049706]
[1736175087999,0.049699,100630.0,100620.0,0.3608]
[1736175088196,0.26848567,100640.0,100620.0,0.62394857]
[1736175088402,0.01149167,100640.0,100630.0,0.62394857]
[1736175088595,0.00149167,100640.0,100630.0,0.62394857]
[1736175088793,0.00149167,100640.0,100630.0,0.67364757]
[1736175089305,0.58931755,100670.0,100640.0,0.049694]
[1736175089495,0.049691,100650.0,100630.0,0.3608]
[1736175089695,0.420491,100650.0,100630.0,0.3608]
[1736175089896,0.420491,100650.0,100620.0,0.67421257]
[1736175090121,0.3608,100640.0,100620.0,0.67365257]
[1736175090301,0.049691,100650.0,100630.0,0.26314857]
[1736175090599,0.01,100650.0,100640.0,0.62394857]
[1736175090803,0.059689,100650.0,100640.0,0.3608]
[1736175091004,0.059689,100650.0,100620.0,0.3608]
[1736175091005,0.049694,100640.0,100620.0,0.3608]
[1736175091303,0.3608,100660.0,100630.0,0.410498]
[1736175091507,0.67512143,100670.0,100650.0,0.3608]
[1736175091508,0.00265086,100670.0,100650.0,0.3608]
[1736175091708,0.07149086,100670.0,100660.0,0.3608]
[1736175092006,0.07149086,100670.0,100650.0,0.3608]
[1736175092007,0.12116986,100670.0,100650.0,0.3608]
[1736175092194,0.48196986,100670.0,100650.0,1.8608]
[1736175092493,0.049689,100650.0,100620.0,0.56376]
[1736175092724,0.01,100650.0,100630.0,0.410496]
[1736175092900,0.410485,100660.0,100640.0,0.410494]
[1736175093096,0.480485,100660.0,100640.0,1.549694]
[1736175093307,0.119685,100660.0,100640.0,1.910494]
[1736175093603,0.119685,100660.0,100640.0,0.410494]
[1736175093803,0.07,100660.0,100650.0,0.410489]
[1736175093998,0.00149086,100670.0,100650.0,0.410489]
[1736175094194,0.15,100670.0,100660.0,2.17363257]
[1736175094402,0.610461,100710.0,100670.0,0.049675]
[1736175094605,0.309661,100710.0,100690.0,0.3608]
[1736175094812,0.670461,100710.0,100690.0,0.3608]
[1736175094993,0.2,100710.0,100700.0,0.410464]
[1736175095309,0.36349003,100740.0,100700.0,0.62394857]
[1736175095604,0.36229002,100740.0,100720.0,0.67360157]
[1736175095806,0.05113502,100740.0,100720.0,0.3608]
[1736175096009,0.66543859,100740.0,100710.0,0.3608]
[1736175096206,0.049659,100710.0,100700.0,0.00056]
[1736175096400,0.069659,100710.0,100690.0,0.36228973]
[1736175096595,0.049664,100700.0,100690.0,0.36228973]
[1736175096908,0.41046,100710.0,100690.0,0.6751063]
[1736175097096,0.049666,100700.0,100670.0,0.410476]
[1736175097300,0.059666,100700.0,100680.0,0.3608]
[1736175097500,0.3608,100720.0,100700.0,0.049664]
[1736175097700,0.15,100720.0,100710.0,0.049659]
[1736175097896,0.199654,100720.0,100700.0,0.67361157]
[1736175098103,0.560454,100720.0,100710.0,1.5]
[1736175098298,0.15,100720.0,100700.0,0.3608]
[1736175098602,0.049659,100710.0,100690.0,0.3608]
[1736175098804,0.04,100710.0,100690.0,0.3608]
[1736175099011,0.3608,100730.0,100710.0,0.049659]
[1736175099012,0.410451,100730.0,100710.0,0.049659]
[1736175099202,0.550451,100730.0,100710.0,0.049659]
[1736175099403,0.14,100730.0,100720.0,0.31280257]
[1736175099598,0.00149002,100740.0,100730.0,0.04965]
[1736175099907,0.00850732,100750.0,100740.0,0.049645]
[1736175100110,0.049638,100760.0,100740.0,0.67359357]
[1736175100413,0.76606,100780.0,100750.0,0.62394857]
[1736175100598,0.049631,100770.0,100760.0,0.26314857]
[1736175100801,0.3608,100780.0,100760.0,0.26314857]
[1736175101001,0.3608,100780.0,100770.0,0.26314857]
[1736175101202,0.42259074,100790.0,100770.0,0.62394857]
[1736175101203,0.37296874,100790.0,100770.0,0.62394857]
[1736175101415,0.45258974,100790.0,100770.0,0.3608]
[1736175102006,0.40296874,100790.0,100770.0,0.67357757]
[1736175102206,0.40296874,100790.0,100770.0,0.62394857]
[1736175102415,0.01216874,100790.0,100780.0,0.67357357]
[1736175102709,0.0001,100820.0,100790.0,0.04962]
[1736175102903,0.0001,100820.0,100810.0,0.04961]
[1736175103099,0.0101,100820.0,100810.0,0.41041]
[1736175103304,0.049612,100810.0,100790.0,0.0006]
[1736175103506,0.3608,100800.0,100780.0,0.049624]
[1736175103703,0.02,100800.0,100780.0,0.410424]
[1736175104006,0.3608,100810.0,100790.0,0.26314857]
[1736175104213,0.02,100810.0,100790.0,0.67356557]
[1736175104506,0.410505,100820.0,100800.0,0.3608]
[1736175104707,0.0001,100820.0,100810.0,0.62394857]
[1736175104908,0.0001,100820.0,100810.0,0.41041]
[1736175105205,0.490506,100820.0,100800.0,0.36132]
[1736175105402,0.490506,100820.0,100800.0,0.3608]
[1736175105807,0.04961,100810.0,100800.0,0.3608]
[1736175106010,0.16961,100810.0,100800.0,0.3608]
[1736175106202,0.049615,100800.0,100790.0,0.3608]
[1736175106404,0.69394857,100800.0,100770.0,0.3608]
[1736175106710,0.480416,100800.0,100780.0,0.67357257]
[1736175106911,0.04962,100790.0,100770.0,0.410429]
[1736175107099,0.049625,100780.0,100770.0,0.3608]
[1736175107302,0.410421,100790.0,100770.0,0.3608]
[1736175107501,0.5008,100790.0,100770.0,0.67357757]
[1736175107701,0.14,100790.0,100780.0,0.16314857]
[1736175107905,0.189621,100790.0,100770.0,0.410425]
[1736175108115,0.14,100790.0,100780.0,0.049625]
[1736175108413,0.3608,100800.0,100780.0,0.3608]
[1736175108713,0.570418,100800.0,100770.0,0.36132]
[1736175108915,0.570418,100800.0,100770.0,0.410429]
[1736175109108,0.04962,100790.0,100770.0,0.410429]
[1736175109305,0.049625,100780.0,100770.0,0.3608]
[1736175109613,0.209625,100780.0,100770.0,0.3608]
[1736175110007,0.04963,100770.0,100760.0,0.3608]
[1736175110204,0.16,100770.0,100760.0,0.410435]
[1736175110409,0.255681,100790.0,100770.0,0.049629]
[1736175110618,0.16,100790.0,100780.0,0.410422]
[1736175110806,0.16,100790.0,100780.0,0.3608]
[1736175111007,0.570423,100790.0,100770.0,0.3608]
[1736175111212,0.209623,100790.0,100770.0,0.410429]
[1736175111414,0.209623,100790.0,100780.0,0.67357357]
[1736175111415,0.16,100790.0,100780.0,0.67357357]
[1736175111616,0.494606,100820.0,100800.0,0.049615]
[1736175111617,0.205,100820.0,100800.0,0.049615]
[1736175111914,0.404605,100820.0,100810.0,0.3608]
[1736175112107,0.404605,100820.0,100800.0,0.410412]
[1736175112306,0.1501,100820.0,100810.0,0.3608]
[1736175112513,0.1501,100820.0,100810.0,0.41041]
[1736175112813,0.1501,100820.0,100810.0,1.54961]
[1736175113409,0.1501,100820.0,100810.0,1.81275857]
[1736175113612,0.1501,100820.0,100810.0,2.17355857]
[1736175114005,0.1501,100820.0,100810.0,1.91041]
[1736175114721,0.5109,100820.0,100800.0,0.410411]
[1736175115014,0.1501,100820.0,100810.0,0.67355857]
[1736175115220,0.0496,100840.0,100810.0,2.17355557]
[1736175115407,0.5704,100840.0,100820.0,0.410403]
[1736175115607,0.3608,100830.0,100810.0,1.5]
[1736175115813,0.04961,100810.0,100800.0,0.3608]
[1736175116125,0.049615,100800.0,100790.0,0.3608]
[1736175116428,0.15,100800.0,100780.0,0.410424]
[1736175116611,0.15,100800.0,100790.0,0.62394857]
[1736175116812,0.36196,100820.0,100790.0,2.17356857]
[1736175116813,0.460017,100820.0,100790.0,2.17356857]
[1736175117013,0.04961,100810.0,100800.0,0.3608]
[1736175117320,0.18961,100810.0,100800.0,0.3608]
[1736175118116,0.049615,100800.0,100790.0,1.50052]
[1736175118311,0.540415,100800.0,100790.0,1.5]
[1736175118517,0.049625,100780.0,100770.0,0.00148834]
[1736175118712,0.179625,100780.0,100770.0,0.00148834]
[1736175118912,0.179625,100780.0,100770.0,0.36228834]
[1736175119518,0.44277357,100780.0,100770.0,0.00148834]
[1736175119716,0.540425,100780.0,100770.0,0.00148834]
[1736175119914,0.13,100780.0,100770.0,0.67506691]
[1736175120115,0.13,100780.0,100770.0,1.03586691]
[1736175120317,0.049619,100800.0,100780.0,0.049624]
[1736175120519,0.16,100800.0,100790.0,0.41042]
[1736175120733,0.16,100800.0,100790.0,1.03436857]
[1736175121420,0.049607,100820.0,100790.0,1.03436857]
[1736175121622,0.199606,100820.0,100800.0,0.410412]
[1736175121818,0.199606,100820.0,100810.0,0.3608]
[1736175122019,0.199606,100820.0,100800.0,0.3608]
[1736175122221,0.560406,100820.0,100800.0,0.410412]
[1736175122425,0.199606,100820.0,100800.0,0.410412]
[1736175122617,0.15,100820.0,100810.0,0.41041]
[1736175122813,0.15,100820.0,100810.0,1.91041]
[1736175123822,0.15,100820.0,100810.0,2.17355857]
[1736175124127,0.049587,100860.0,100840.0,0.049593]
[1736175124324,0.199587,100860.0,100850.0,0.3608]
[1736175124919,0.049595,100840.0,100830.0,0.36136]
[1736175125127,0.16,100840.0,100830.0,0.3608]
[1736175125325,0.16,100840.0,100830.0,0.7712]
[1736175125527,0.049587,100860.0,100830.0,1.03434857]
[1736175125723,0.13,100860.0,100850.0,0.771189]
[1736175125925,0.179586,100860.0,100850.0,0.7216]
[1736175126127,0.179586,100860.0,100850.0,0.72135882]
[1736175126327,0.13,100860.0,100850.0,0.77094882]
[1736175126533,0.179586,100860.0,100850.0,0.72135882]
[1736175126738,0.179586,100860.0,100830.0,0.3608]
[1736175126739,0.04959,100850.0,100830.0,0.3608]
[1736175126949,0.049595,100840.0,100830.0,0.3608]
[1736175127145,0.049605,100820.0,100810.0,0.3608]
[1736175127348,0.049613,100810.0,100800.0,0.64612203]
[1736175127555,0.209613,100810.0,100800.0,0.64612203]
[1736175128555,0.209613,100810.0,100800.0,0.28532203]
[1736175128746,0.049615,100800.0,100780.0,1.5]
[1736175128944,0.41042,100790.0,100780.0,1.5]
[1736175129250,0.54042,100790.0,100780.0,1.5]
[1736175129647,0.13,100790.0,100780.0,2.12394857]
[1736175129950,0.13,100790.0,100780.0,2.53437357]
[1736175130148,0.049616,100800.0,100780.0,2.53437357]
[1736175130345,0.16,100800.0,100790.0,0.67356857]
[1736175130538,0.14706187,100810.0,100800.0,0.049614]
[1736175130743,0.30706187,100810.0,100800.0,0.67356257]
[1736175130943,0.30706187,100810.0,100800.0,0.3608]
[1736175131144,0.049615,100800.0,100790.0,0.3614]
[1736175131336,0.199615,100800.0,100790.0,0.3608]
[1736175131941,0.04962,100790.0,100780.0,1.50052]
[1736175132143,0.04962,100790.0,100780.0,1.5]
[1736175132144,0.17962,100790.0,100780.0,1.5]
[1736175132324,0.54042,100790.0,100780.0,1.5]
[1736175132736,0.80356857,100790.0,100780.0,1.5]
[1736175133031,0.049625,100780.0,100740.0,0.81410392]
[1736175133236,0.3608,100770.0,100740.0,0.81410392]
[1736175133426,0.049637,100760.0,100740.0,1.07725249]
[1736175133634,0.189637,100760.0,100750.0,0.3608]
[1736175133836,0.04964,100750.0,100740.0,0.58980392]
[1736175134033,0.55044,100750.0,100720.0,0.68829022]
[1736175134235,0.71793565,100750.0,100730.0,0.3608]
[1736175134433,0.14,100750.0,100730.0,0.3608]
[1736175134635,0.189644,100750.0,100740.0,1.8608]
[1736175134836,0.14,100750.0,100740.0,1.8608]
[1736175135137,0.16800171,100770.0,100740.0,2.17359357]
[1736175135439,0.13837071,100770.0,100750.0,0.3608]
[1736175135640,0.31278357,100760.0,100740.0,1.8608]
[1736175135835,0.04964,100750.0,100740.0,1.8608]
[1736175136241,0.049636,100760.0,100740.0,1.8608]
[1736175136438,0.209636,100760.0,100740.0,1.8608]
[1736175137037,0.74363928,100770.0,100750.0,0.62394857]
[1736175137038,0.11969071,100770.0,100750.0,0.62394857]
[1736175137235,0.17647424,100790.0,100760.0,0.410434]
[1736175137438,0.31277657,100780.0,100750.0,0.625038]
[1736175137744,0.049635,100760.0,100750.0,0.5754]
[1736175137939,0.14,100760.0,100750.0,0.3608]
[1736175138638,0.189635,100760.0,100750.0,0.3608]
[1736175138840,0.04964,100750.0,100740.0,0.00056]
[1736175139038,0.81358857,100750.0,100740.0,0.00056]
[1736175139244,0.049654,100720.0,100710.0,0.3608]
[1736175139547,0.209654,100720.0,100710.0,0.3608]
[1736175139935,0.16,100720.0,100710.0,0.3608]
[1736175140135,0.01,100720.0,100710.0,0.410458]
[1736175140343,0.049645,100740.0,100720.0,0.049653]
[1736175140531,0.15,100740.0,100730.0,0.3608]
[1736175140841,0.199645,100740.0,100720.0,0.3608]
[1736175141036,0.46279357,100740.0,100720.0,0.3608]
[1736175141237,0.15,100740.0,100730.0,0.41045]
[1736175141639,0.16,100740.0,100730.0,0.41045]
[1736175141842,1.06864981,100780.0,100750.0,0.049637]
[1736175142038,0.72690124,100780.0,100760.0,0.410433]
[1736175142237,0.36610024,100780.0,100760.0,0.410433]
[1736175142746,0.36610024,100780.0,100770.0,1.5]
[1736175142941,0.36610024,100780.0,100770.0,1.8608]
[1736175143338,0.189626,100780.0,100770.0,1.8608]
[1736175143740,0.189626,100780.0,100770.0,1.5]
[1736175144241,0.189626,100780.0,100760.0,0.049633]
[1736175144441,0.259255,100780.0,100760.0,0.3608]
[1736175144641,0.04963,100770.0,100760.0,0.3608]
[1736175144839,0.20963,100770.0,100760.0,1.8608]
[1736175145042,0.20963,100770.0,100760.0,1.5]
[1736175145444,0.47277857,100770.0,100750.0,0.3608]
[1736175145641,0.570433,100770.0,100750.0,0.3608]
[1736175145941,0.049635,100760.0,100750.0,0.3608]
[1736175146141,0.189635,100760.0,100740.0,0.62775221]
[1736175146453,0.14,100760.0,100750.0,0.41044]
[1736175146745,0.14,100760.0,100750.0,1.91044]
[1736175147747,0.14,100760.0,100750.0,2.17358857]
[1736175147944,0.13813896,100790.0,100760.0,0.04963]
[1736175148240,0.13813896,100790.0,100780.0,0.410425]
[1736175148241,0.23851696,100790.0,100780.0,0.410425]
[1736175148441,0.08851696,100790.0,100780.0,0.410425]
[1736175148641,0.47166553,100790.0,100770.0,0.3608]
[1736175148852,0.049625,100780.0,100770.0,0.3608]
[1736175149036,0.05,100780.0,100770.0,0.7216]
[1736175149350,0.049621,100790.0,100770.0,0.77123]
[1736175149545,0.199621,100790.0,100780.0,0.3608]
[1736175150045,0.46276957,100790.0,100780.0,0.3608]
[1736175150247,0.049625,100780.0,100770.0,0.3608]
[1736175150444,0.179625,100780.0,100770.0,0.3608]
[1736175150941,0.13,100780.0,100770.0,0.41043]
[1736175151944,0.44277357,100780.0,100770.0,0.3608]
[1736175152134,0.13,100780.0,100770.0,0.3608]
[1736175152335,0.13,100780.0,100770.0,0.41043]
[1736175152540,0.179625,100780.0,100770.0,0.3608]
[1736175152942,0.44277357,100780.0,100770.0,0.3608]
[1736175153444,0.179625,100780.0,100770.0,0.3608]
[1736175154053,0.04963,100770.0,100760.0,0.00052]
[1736175154240,0.049635,100760.0,100750.0,0.3608]
[1736175154440,0.199635,100760.0,100750.0,0.7216]
[1736175155238,0.13814496,100780.0,100760.0,0.049633]
[1736175155442,0.19814496,100780.0,100770.0,0.7216]
[1736175155645,0.19814496,100780.0,100770.0,0.9497]
[1736175155845,0.14851696,100780.0,100760.0,0.3608]
[1736175156147,0.049631,100770.0,100760.0,0.3608]
[1736175156348,0.15,100770.0,100760.0,0.3608]
[1736175156547,0.15,100770.0,100760.0,0.410435]
[1736175157653,0.15,100770.0,100760.0,0.67174653]
[1736175157852,0.049623,100790.0,100770.0,0.049627]
[1736175158047,0.209623,100790.0,100780.0,0.771225]
[1736175158354,0.16,100790.0,100780.0,2.53253653]
[1736175160347,0.199608,100820.0,100810.0,0.27228304]
[1736175160348,0.15,100820.0,100810.0,0.27228304]
[1736175160551,0.17647424,100840.0,100830.0,0.0496]
[1736175160851,0.20588662,100860.0,100840.0,0.049595]
[1736175161050,0.28487999,100870.0,100850.0,1.03250153]
[1736175161051,0.23529899,100870.0,100850.0,1.03250153]
[1736175161249,0.236419,100870.0,100860.0,0.67169753]
[1736175161850,0.23529899,100870.0,100860.0,0.67169753]
[1736175162553,0.04961479,100890.0,100880.0,0.049576]
[1736175162741,0.04961479,100890.0,100880.0,0.771176]
[1736175163454,4.279e-05,100890.0,100880.0,1.03248753]
[1736175163850,4.279e-05,100890.0,100880.0,2.53248753]
[1736175164742,0.04961379,100890.0,100880.0,2.2216]
[1736175164948,0.05961379,100890.0,100880.0,0.7216]
[1736175165142,4.279e-05,100890.0,100880.0,1.03248753]
[1736175165552,4.279e-05,100890.0,100880.0,2.53248753]
[1736175166449,0.04961379,100890.0,100880.0,0.3608]
[1736175166646,0.04961379,100890.0,100880.0,0.410376]
[1736175166844,4.279e-05,100890.0,100880.0,1.03248753]
[1736175167044,4.279e-05,100890.0,100880.0,2.53248753]
[1736175169648,0.149567,100900.0,100880.0,2.53248753]
[1736175169855,0.149567,100900.0,100890.0,0.67168253]
[1736175170153,0.1,100900.0,100890.0,0.67168253]
[1736175171254,0.219566,100900.0,100890.0,0.410371]
[1736175171758,0.09693605,100900.0,100890.0,0.410371]
[1736175171950,0.09693605,100900.0,100890.0,0.3608]
[1736175172348,0.09693605,100900.0,100890.0,0.67168253]
[1736175172658,0.04737005,100900.0,100890.0,0.67168253]
[1736175172956,0.04737005,100900.0,100890.0,0.410371]
[1736175173150,0.09693605,100900.0,100890.0,0.3608]
[1736175174153,0.049571,100890.0,100880.0,1.86132]
[1736175174351,0.80168253,100890.0,100860.0,0.36228689]
[1736175174553,0.049586,100860.0,100840.0,0.410395]
[1736175174854,0.15,100860.0,100850.0,0.00052]
[1736175175052,0.199586,100860.0,100850.0,0.41039]
[1736175175260,0.15,100860.0,100850.0,0.67130675]
[1736175175459,0.15,100860.0,100850.0,2.17130675]
[1736175175761,0.049581,100870.0,100850.0,2.17130675]
[1736175175956,0.199581,100870.0,100860.0,0.3608]
[1736175176465,0.199581,100870.0,100860.0,0.410386]
[1736175176466,0.15,100870.0,100860.0,0.410386]
[1736175176664,0.199581,100870.0,100860.0,0.3608]
[1736175176854,0.46049775,100870.0,100860.0,0.3608]
[1736175177355,0.46049775,100870.0,100850.0,1.8608]
[1736175177356,0.049586,100860.0,100850.0,1.8608]
[1736175177566,0.179586,100860.0,100850.0,1.5]
[1736175177759,0.80130275,100860.0,100850.0,1.5]
[1736175178055,1.10130275,100860.0,100820.0,0.36228753]
[1736175178357,0.049597,100840.0,100820.0,0.3608]
[1736175178563,0.560397,100840.0,100820.0,0.3608]
[1736175178864,0.15,100840.0,100830.0,0.4104]
[1736175179053,0.15,100840.0,100830.0,1.9104]
[1736175179254,0.199595,100840.0,100830.0,1.8608]
[1736175179759,0.15,100840.0,100830.0,1.8608]
[1736175179959,0.15,100840.0,100830.0,1.9104]
[1736175180366,0.049591,100850.0,100830.0,1.9104]
[1736175180553,0.209591,100850.0,100830.0,1.9104]
[1736175180857,0.16,100850.0,100840.0,0.67131175]
[1736175181051,0.050337,100880.0,100860.0,0.049584]
[1736175181251,0.189577,100880.0,100870.0,0.3608]
[1736175181861,0.14,100880.0,100870.0,0.3608]
[1736175182254,0.049573,100890.0,100870.0,0.410381]
[1736175182454,0.13,100890.0,100880.0,0.3608]
[1736175182655,0.13,100890.0,100880.0,0.410376]
[1736175183151,0.049562,100910.0,100890.0,0.04957]
[1736175183350,0.199562,100910.0,100900.0,0.7216]
[1736175184666,0.199562,100910.0,100900.0,2.2216]
[1736175186261,0.76047875,100910.0,100870.0,0.05162635]
[1736175186459,0.3608,100880.0,100870.0,0.00148735]
[1736175186664,0.83129275,100880.0,100870.0,0.00148735]
[1736175186868,0.83129275,100880.0,100870.0,1.5]
[1736175187164,0.049581,100870.0,100860.0,0.17060077]
[1736175187355,0.049581,100870.0,100850.0,0.17060077]
[1736175187356,0.570381,100870.0,100850.0,0.17060077]
[1736175187557,0.83129775,100870.0,100860.0,1.5]
[1736175187757,0.570381,100870.0,100860.0,1.5]
[1736175188766,0.72292723,100870.0,100860.0,1.5]
[1736175189068,0.77251223,100870.0,100860.0,1.5]
[1736175189974,0.209585,100870.0,100860.0,1.5]
[1736175190268,0.209585,100870.0,100860.0,1.910386]
[1736175190269,0.16,100870.0,100860.0,1.910386]
[1736175190664,0.209581,100870.0,100860.0,1.8608]
[1736175191264,0.16,100870.0,100860.0,2.53210275]
[1736175191477,0.049568,100900.0,100880.0,0.049572]
[1736175191674,0.14,100900.0,100890.0,0.410371]
[1736175191876,0.14,100900.0,100890.0,0.67128775]
[1736175192074,0.14617834,100910.0,100900.0,0.049566]
[1736175192274,0.14617834,100910.0,100900.0,0.410366]
[1736175192779,0.55653134,100930.0,100900.0,0.410362]
[1736175192980,0.34573134,100930.0,100920.0,1.5]
[1736175193676,0.199553,100930.0,100920.0,1.5]
[1736175193981,0.15,100930.0,100920.0,1.549556]
[1736175194175,0.15,100930.0,100920.0,1.5]
[1736175194473,0.15,100930.0,100920.0,1.910356]
[1736175194680,0.560351,100930.0,100920.0,1.5]
[1736175194870,0.82126775,100930.0,100890.0,0.410369]
[1736175195176,0.82126775,100930.0,100900.0,0.049566]
[1736175195177,0.3608,100910.0,100900.0,0.049566]
[1736175195384,0.14,100910.0,100900.0,1.95084061]
[1736175195776,0.14,100910.0,100900.0,2.57255736]
[1736175196080,0.049553,100930.0,100910.0,0.04956]
[1736175196271,0.189553,100930.0,100910.0,0.41036]
[1736175196478,0.189553,100930.0,100910.0,0.67127675]
[1736175196686,0.189553,100930.0,100920.0,0.3608]
[1736175196978,0.14,100930.0,100910.0,0.67127475]
[1736175197181,0.14,100930.0,100920.0,0.3608]
[1736175197384,0.14,100930.0,100910.0,0.410358]
[1736175197385,0.14,100930.0,100910.0,0.459916]
[1736175197886,0.14,100930.0,100920.0,0.049556]
[1736175198390,0.14,100930.0,100920.0,0.410356]
[1736175199179,0.049537,100960.0,100930.0,0.049547]
[1736175199383,0.16,100960.0,100950.0,0.410341]
[1736175200683,0.14848318,100980.0,100960.0,0.049536]
[1736175200876,0.14848318,100980.0,100970.0,2.48251675]
[1736175200877,0.14772318,100980.0,100970.0,2.48251675]
[1736175201085,0.03064311,100990.0,100980.0,0.049527]
[1736175201283,0.03064311,100990.0,100980.0,0.67124375]
[1736175201483,0.23292811,101000.0,100990.0,0.31043875]
[1736175201781,0.23292811,101000.0,100990.0,0.67123875]
[1736175202382,0.26091675,101030.0,100990.0,0.410322]
[1736175202583,0.049515,101010.0,101000.0,0.3608]
[1736175202785,0.1,101010.0,101000.0,0.3608]
[1736175203091,0.1,101010.0,101000.0,0.62171675]
[1736175203276,0.049508,101020.0,101000.0,0.62171675]
[1736175203481,0.049508,101020.0,101010.0,0.62171675]
[1736175203482,0.04,101020.0,101010.0,0.62171675]
[1736175203984,0.04,101020.0,101010.0,0.3608]
[1736175204289,0.089507,101020.0,101010.0,0.3608]
[1736175204588,0.049512,101010.0,101000.0,0.36132]
[1736175204776,0.199512,101010.0,101000.0,0.3608]
[1736175204985,0.049499,101040.0,101010.0,0.049511]
[1736175205293,0.15,101040.0,101020.0,0.3608]
[1736175205490,0.049502,101030.0,101020.0,0.3608]
[1736175205688,0.35041875,101030.0,101010.0,0.3608]
[1736175205882,0.139004,101030.0,101020.0,0.3608]
[1736175206388,0.139004,101030.0,101020.0,1.8608]
[1736175206794,0.139004,101030.0,101010.0,0.3608]
[1736175206795,0.049507,101020.0,101010.0,0.3608]
[1736175206990,0.199507,101020.0,101010.0,0.3608]
[1736175207690,1.17073375,101020.0,101000.0,0.3608]
[1736175207895,0.049517,101000.0,100990.0,0.3608]
[1736175208083,0.209517,101000.0,100990.0,0.3608]
[1736175209090,0.209517,101000.0,100990.0,0.4136551]
[1736175209091,0.16,101000.0,100990.0,0.4136551]
[1736175209291,0.049513,101010.0,100990.0,0.4631761]
[1736175209489,0.189513,101010.0,101000.0,0.3608]
[1736175209795,0.189513,101010.0,100990.0,0.15273835]
[1736175209989,0.049517,101000.0,100990.0,0.00412648]
[1736175210189,0.16,101000.0,100980.0,0.3608]
[1736175210388,0.049522,100990.0,100980.0,0.3608]
[1736175210592,0.209522,100990.0,100980.0,0.3608]
[1736175211983,0.209522,100990.0,100970.0,1.910851]
[1736175212187,0.049527,100980.0,100970.0,1.5]
[1736175212384,0.209527,100980.0,100970.0,1.5]
[1736175212594,0.16,100980.0,100970.0,1.8608]
[1736175212795,0.16,100980.0,100970.0,2.17124875]
[1736175213094,0.049527,100980.0,100970.0,1.8608]
[1736175213286,0.169527,100980.0,100970.0,1.5]
[1736175213491,0.169527,100980.0,100970.0,1.8608]
[1736175213695,0.169527,100980.0,100970.0,1.5]
[1736175215695,0.169527,100980.0,100970.0,1.8608]
[1736175215896,0.169527,100980.0,100970.0,1.5]
[1736175216087,0.530327,100980.0,100970.0,1.5]
[1736175216291,0.049541,100950.0,100940.0,0.00200615]
[1736175216495,0.199541,100950.0,100940.0,0.00148615]
[1736175216891,0.199541,100950.0,100940.0,1.50148615]
[1736175217091,0.199541,100950.0,100940.0,1.86228615]
[1736175217491,0.199541,100950.0,100940.0,1.50148615]
[1736175218395,0.15,100950.0,100940.0,1.50148615]
[1736175218599,0.15,100950.0,100940.0,1.55103215]
[1736175218798,0.15,100950.0,100940.0,1.81146475]
[1736175219001,0.15,100950.0,100940.0,1.50148615]
[1736175219002,0.199541,100950.0,100940.0,1.50148615]
[1736175219299,0.560341,100950.0,100940.0,1.50148615]
[1736175219495,0.8207736,100950.0,100940.0,1.5]
[1736175219693,0.560341,100950.0,100940.0,1.5]
[1736175220896,0.199541,100950.0,100940.0,1.5]
[1736175221098,0.15,100950.0,100940.0,1.8608]
[1736175221300,0.15,100950.0,100940.0,2.1707786]
[1736175221495,0.15,100950.0,100940.0,1.8099786]
[1736175221798,0.15,100950.0,100940.0,1.549546]
[1736175221997,0.199541,100950.0,100940.0,1.8608]
[1736175222197,0.560341,100950.0,100940.0,1.5]
[1736175222398,0.15,100950.0,100940.0,1.549546]
[1736175222699,0.5108,100950.0,100940.0,1.5]
[1736175222900,0.560341,100950.0,100940.0,1.5]
[1736175224000,0.049555,100930.0,100910.0,0.46290648]
[1736175224204,0.540355,100930.0,100910.0,0.87274748]
[1736175224501,0.540354,100930.0,100920.0,1.5]
[1736175224890,0.530354,100930.0,100920.0,1.5]
[1736175225203,0.179554,100930.0,100920.0,1.5]
[1736175225394,0.13,100930.0,100920.0,1.8099886]
[1736175225597,0.36132001,100950.0,100920.0,2.1707886]
[1736175225598,0.3608,100950.0,100920.0,2.1707886]
[1736175225791,0.14,100950.0,100940.0,0.3099786]
[1736175226096,0.32551101,100960.0,100950.0,0.049541]
[1736175226298,0.32551101,100960.0,100950.0,0.6707736]
[1736175226299,0.17726782,100960.0,100950.0,0.6707736]
[1736175226507,0.049527,100980.0,100960.0,0.099068]
[1736175226698,0.049527,100980.0,100970.0,0.3608]
[1736175226699,0.06,100980.0,100970.0,0.3608]
[1736175227001,0.06,100980.0,100970.0,0.410332]
[1736175227197,0.109527,100980.0,100970.0,0.3608]
[1736175227596,0.06,100980.0,100970.0,0.771132]
[1736175227796,0.03,100990.0,100970.0,1.0315646]
[1736175228000,0.079522,100990.0,100980.0,0.6212326]
[1736175228205,0.079522,100990.0,100980.0,0.3608]
[1736175229397,0.079522,100990.0,100970.0,0.6713216]
[1736175229598,0.079522,100990.0,100970.0,0.6707616]
[1736175229807,0.03,100990.0,100980.0,0.410327]
[1736175229997,0.03,100990.0,100980.0,1.910327]
[1736175230198,0.149522,100990.0,100980.0,1.8608]
[1736175230399,0.079522,100990.0,100980.0,1.8608]
[1736175230905,0.03,100990.0,100980.0,1.910327]
[1736175231102,0.03,100990.0,100980.0,2.1707546]
[1736175232105,0.079517,100990.0,100980.0,1.910322]
[1736175232306,0.03,100990.0,100980.0,2.1707546]
[1736175232902,0.079517,100990.0,100980.0,0.3608]
[1736175233101,0.049522,100980.0,100970.0,0.3608]
[1736175233305,0.109522,100980.0,100970.0,0.3608]
[1736175234404,0.109522,100980.0,100960.0,1.5006]